{"text_format":"3","workbook":"xlsx","n_sheets":2,"sheets":["Следене на отслабване","изчисления"],"not_rendered":{"charts":1,"defined_names":7},"read":"whole","date_system":"1900"}

{"sheet":"Следене на отслабване","index":0,"n_rows":129,"n_cols":11,"rows_kept":129,"merged":[[0,5,0,9],[1,4,3,9]]}
[null,"ЦЕЛЕВО ТЕГЛО","ИЗГЛЕД НА ДИАГРАМА",null,null," ОТСЛАБВАНЕТО НА ВЯРА"]
[{"$nulls":4},"ПРОСЛЕДЯВАНЕ"]
[null,{"v":172,"d":"172.0"},"СЕДМИЧНИ",{"$nulls":7}," "]
[]
[]
[{"$nulls":10}," "]
{"$rows_empty":18}
[null,"ДАТА","ТЕГЛО"]
[null,"2012-11-30",{"v":176,"d":"176.0"}]
[null,"2012-12-07",{"v":176,"d":"176.0"}]
[null,"2012-12-14",177.6]
[null,"2012-12-21",176.5]
[null,"2012-12-28",176.1]
[null,"2013-01-04",{"v":174,"d":"174.0"}]
[null,"2013-01-11",{"v":173,"d":"173.0"}]
[null,"2013-01-18",{"v":172,"d":"172.0"}]
[null,"2013-01-25",{"v":172,"d":"172.0"}]
[null,"2013-02-01",{"v":173,"d":"173.0"}]
[null,"2013-02-08",{"v":174,"d":"174.0"}]
[null,"2013-02-15",{"v":175,"d":"175.0"}]
[null,"2013-02-22"]
[null,"2013-03-01"]
[null,"2013-03-08"]
[null,"2013-03-15"]
[null,"2013-03-22"]
[null,"2013-03-29"]
[null,"2013-04-05"]
[null,"2013-04-12"]
[null,"2013-04-19"]
[null,"2013-04-26"]
[null,"2013-05-03"]
[null,"2013-05-10"]
[null,"2013-05-17"]
[null,"2013-05-24"]
[null,"2013-05-31"]
[null,"2013-06-07"]
[null,"2013-06-14"]
[null,"2013-06-21"]
[null,"2013-06-28"]
[null,"2013-07-05"]
[null,"2013-07-12"]
[null,"2013-07-19"]
[null,"2013-07-26"]
[null,"2013-08-02"]
[null,"2013-08-09"]
[null,"2013-08-16"]
[null,"2013-08-23"]
[null,"2013-08-30"]
[null,"2013-09-06"]
[null,"2013-09-13"]
[null,"2013-09-20"]
[null,"2013-09-27"]
[null,"2013-10-04"]
[null,"2013-10-11"]
[null,"2013-10-18"]
[null,"2013-10-25"]
[null,"2013-11-01"]
[null,"2013-11-08"]
[null,"2013-11-15"]
[null,"2013-11-22"]
[null,"2013-11-29"]
[null,"2013-12-06"]
[null,"2013-12-13"]
[null,"2013-12-20"]
[null,"2013-12-27"]
[null,"2014-01-03"]
[null,"2014-01-10"]
[null,"2014-01-17"]
[null,"2014-01-24"]
[null,"2014-01-31"]
[null,"2014-02-07"]
[null,"2014-02-14"]
[null,"2014-02-21"]
[null,"2014-02-28"]
[null,"2014-03-07"]
[null,"2014-03-14"]
[null,"2014-03-21"]
[null,"2014-03-28"]
[null,"2014-04-04"]
[null,"2014-04-11"]
[null,"2014-04-18"]
[null,"2014-04-25"]
[null,"2014-05-02"]
[null,"2014-05-09"]
[null,"2014-05-16"]
[null,"2014-05-23"]
[null,"2014-05-30"]
[null,"2014-06-06"]
[null,"2014-06-13"]
[null,"2014-06-20"]
[null,"2014-06-27"]
[null,"2014-07-04"]
[null,"2014-07-11"]
[null,"2014-07-18"]
[null,"2014-07-25"]
[null,"2014-08-01"]
[null,"2014-08-08"]
[null,"2014-08-15"]
[null,"2014-08-22"]
[null,"2014-08-29"]
[null,"2014-09-05"]
[null,"2014-09-12"]
[null,"2014-09-19"]
[null,"2014-09-26"]
[null,"2014-10-03"]
[null,"2014-10-10"]
[null,"2014-10-17"]
[null,"2014-10-24"]
[null,"2014-10-31"]
[null,"2014-11-07"]
[null,"2014-11-14"]
[null,"2014-11-21"]

{"sheet":"изчисления","index":1,"n_rows":108,"n_cols":17,"rows_kept":108,"hidden":true}
["*** Този лист трябва да остане скрит ***"]
[]
[{"$f":"COUNTIF(A5:A108,FALSE)","v":13},"Периоди","Стойности",{"$nulls":3},{"$f":"COUNTIF(H5:H28,\">\"&0)","v":4},"Периоди",null,"Стойности"]
[null,"Седмица",null,null,true,null,null,"Месец","Край на месеца"]
[{"$f":"IF(('Следене на отслабване'!C26=0)*('Следене на отслабване'!C25=0),TRUE)","v":false},{"$f":"IF(A5,0,IF('Следене на отслабване'!B26=0,'Следене на отслабване'!B25+5,'Следене на отслабване'!B26))","v":"2012-11-30"},{"$f":"'Следене на отслабване'!C26","v":176},{"$f":"MIN(ДиаграмиПериоди)","v":"2012-11-30"},{"$f":"IF($E$4,ЦелевоТегло,NA())","v":172},null,null,{"$f":"DATE(YEAR(B5),MONTH(B5),1)","v":"2012-11-01"},{"$f":"EOMONTH(H5,0)","v":"2012-11-30"},{"$f":"IFERROR(AVERAGEIFS(ТаблицаТегло[ТЕГЛО],ТаблицаТегло[ДАТА],\">=\"&H5,ТаблицаТегло[ДАТА],\"<=\"&I5),NA())","v":176}]
[{"$f":"IF(('Следене на отслабване'!C27=0)*('Следене на отслабване'!C26=0),TRUE)","v":false},{"$f":"IF(A6,0,IF('Следене на отслабване'!B27=0,'Следене на отслабване'!B26+5,'Следене на отслабване'!B27))","v":"2012-12-07"},{"$f":"'Следене на отслабване'!C27","v":176},{"$f":"MAX(ДиаграмиПериоди)","v":"2013-02-22"},172,null,null,{"$f":"IF(I5+1>MAX($B:$B),NA(),I5+1)","v":"2012-12-01"},"2012-12-31",{"$f":"IFERROR(AVERAGEIFS(ТаблицаТегло[ТЕГЛО],ТаблицаТегло[ДАТА],\">=\"&H6,ТаблицаТегло[ДАТА],\"<=\"&I6),NA())","v":176.55}]
[{"$f":"IF(('Следене на отслабване'!C28=0)*('Следене на отслабване'!C27=0),TRUE)","v":false},{"$f":"IF(A7,0,IF('Следене на отслабване'!B28=0,'Следене на отслабване'!B27+5,'Следене на отслабване'!B28))","v":"2012-12-14"},{"$f":"'Следене на отслабване'!C28","v":177.6},{"$nulls":4},{"$f":"IF(I6+1>MAX($B:$B),NA(),I6+1)","v":"2013-01-01"},"2013-01-31",{"$f":"IFERROR(AVERAGEIFS(ТаблицаТегло[ТЕГЛО],ТаблицаТегло[ДАТА],\">=\"&H7,ТаблицаТегло[ДАТА],\"<=\"&I7),NA())","v":172.75}]
[{"$f":"IF(('Следене на отслабване'!C29=0)*('Следене на отслабване'!C28=0),TRUE)","v":false},{"$f":"IF(A8,0,IF('Следене на отслабване'!B29=0,'Следене на отслабване'!B28+5,'Следене на отслабване'!B29))","v":"2012-12-21"},{"$f":"'Следене на отслабване'!C29","v":176.5},{"$nulls":4},"2013-02-01","2013-02-28",{"$f":"IFERROR(AVERAGEIFS(ТаблицаТегло[ТЕГЛО],ТаблицаТегло[ДАТА],\">=\"&H8,ТаблицаТегло[ДАТА],\"<=\"&I8),NA())","v":174}]
[{"$f":"IF(('Следене на отслабване'!C30=0)*('Следене на отслабване'!C29=0),TRUE)","v":false},{"$f":"IF(A9,0,IF('Следене на отслабване'!B30=0,'Следене на отслабване'!B29+5,'Следене на отслабване'!B30))","v":"2012-12-28"},{"$f":"'Следене на отслабване'!C30","v":176.1},{"$nulls":4},{"$error":"#N/A"},{"$error":"#N/A"},{"$f":"IFERROR(AVERAGEIFS(ТаблицаТегло[ТЕГЛО],ТаблицаТегло[ДАТА],\">=\"&H9,ТаблицаТегло[ДАТА],\"<=\"&I9),NA())","v":{"$error":"#N/A"}}]
[{"$f":"IF(('Следене на отслабване'!C31=0)*('Следене на отслабване'!C30=0),TRUE)","v":false},{"$f":"IF(A10,0,IF('Следене на отслабване'!B31=0,'Следене на отслабване'!B30+5,'Следене на отслабване'!B31))","v":"2013-01-04"},{"$f":"'Следене на отслабване'!C31","v":174},{"$nulls":4},{"$error":"#N/A"},{"$error":"#N/A"},{"$f":"IFERROR(AVERAGEIFS(ТаблицаТегло[ТЕГЛО],ТаблицаТегло[ДАТА],\">=\"&H10,ТаблицаТегло[ДАТА],\"<=\"&I10),NA())","v":{"$error":"#N/A"}}]
[{"$f":"IF(('Следене на отслабване'!C32=0)*('Следене на отслабване'!C31=0),TRUE)","v":false},{"$f":"IF(A11,0,IF('Следене на отслабване'!B32=0,'Следене на отслабване'!B31+5,'Следене на отслабване'!B32))","v":"2013-01-11"},{"$f":"'Следене на отслабване'!C32","v":173},{"$nulls":4},{"$error":"#N/A"},{"$error":"#N/A"},{"$f":"IFERROR(AVERAGEIFS(ТаблицаТегло[ТЕГЛО],ТаблицаТегло[ДАТА],\">=\"&H11,ТаблицаТегло[ДАТА],\"<=\"&I11),NA())","v":{"$error":"#N/A"}},{"$nulls":6},{"$f":"MAX($B:$B)","v":"2013-02-22"}]
[{"$f":"IF(('Следене на отслабване'!C33=0)*('Следене на отслабване'!C32=0),TRUE)","v":false},{"$f":"IF(A12,0,IF('Следене на отслабване'!B33=0,'Следене на отслабване'!B32+5,'Следене на отслабване'!B33))","v":"2013-01-18"},{"$f":"'Следене на отслабване'!C33","v":172},{"$nulls":4},{"$error":"#N/A"},{"$error":"#N/A"},{"$f":"IFERROR(AVERAGEIFS(ТаблицаТегло[ТЕГЛО],ТаблицаТегло[ДАТА],\">=\"&H12,ТаблицаТегло[ДАТА],\"<=\"&I12),NA())","v":{"$error":"#N/A"}}]
[{"$f":"IF(('Следене на отслабване'!C34=0)*('Следене на отслабване'!C33=0),TRUE)","v":false},{"$f":"IF(A13,0,IF('Следене на отслабване'!B34=0,'Следене на отслабване'!B33+5,'Следене на отслабване'!B34))","v":"2013-01-25"},{"$f":"'Следене на отслабване'!C34","v":172},{"$nulls":4},{"$error":"#N/A"},{"$error":"#N/A"},{"$f":"IFERROR(AVERAGEIFS(ТаблицаТегло[ТЕГЛО],ТаблицаТегло[ДАТА],\">=\"&H13,ТаблицаТегло[ДАТА],\"<=\"&I13),NA())","v":{"$error":"#N/A"}}]
[{"$f":"IF(('Следене на отслабване'!C35=0)*('Следене на отслабване'!C34=0),TRUE)","v":false},{"$f":"IF(A14,0,IF('Следене на отслабване'!B35=0,'Следене на отслабване'!B34+5,'Следене на отслабване'!B35))","v":"2013-02-01"},{"$f":"'Следене на отслабване'!C35","v":173},{"$nulls":4},{"$error":"#N/A"},{"$error":"#N/A"},{"$f":"IFERROR(AVERAGEIFS(ТаблицаТегло[ТЕГЛО],ТаблицаТегло[ДАТА],\">=\"&H14,ТаблицаТегло[ДАТА],\"<=\"&I14),NA())","v":{"$error":"#N/A"}}]
[{"$f":"IF(('Следене на отслабване'!C36=0)*('Следене на отслабване'!C35=0),TRUE)","v":false},{"$f":"IF(A15,0,IF('Следене на отслабване'!B36=0,'Следене на отслабване'!B35+5,'Следене на отслабване'!B36))","v":"2013-02-08"},{"$f":"'Следене на отслабване'!C36","v":174},{"$nulls":4},{"$error":"#N/A"},{"$error":"#N/A"},{"$f":"IFERROR(AVERAGEIFS(ТаблицаТегло[ТЕГЛО],ТаблицаТегло[ДАТА],\">=\"&H15,ТаблицаТегло[ДАТА],\"<=\"&I15),NA())","v":{"$error":"#N/A"}}]
[{"$f":"IF(('Следене на отслабване'!C37=0)*('Следене на отслабване'!C36=0),TRUE)","v":false},{"$f":"IF(A16,0,IF('Следене на отслабване'!B37=0,'Следене на отслабване'!B36+5,'Следене на отслабване'!B37))","v":"2013-02-15"},{"$f":"'Следене на отслабване'!C37","v":175},{"$nulls":4},{"$error":"#N/A"},{"$error":"#N/A"},{"$f":"IFERROR(AVERAGEIFS(ТаблицаТегло[ТЕГЛО],ТаблицаТегло[ДАТА],\">=\"&H16,ТаблицаТегло[ДАТА],\"<=\"&I16),NA())","v":{"$error":"#N/A"}}]
[{"$f":"IF(('Следене на отслабване'!C38=0)*('Следене на отслабване'!C37=0),TRUE)","v":false},{"$f":"IF(A17,0,IF('Следене на отслабване'!B38=0,'Следене на отслабване'!B37+5,'Следене на отслабване'!B38))","v":"2013-02-22"},{"$f":"'Следене на отслабване'!C38","v":0},{"$nulls":4},{"$error":"#N/A"},{"$error":"#N/A"},{"$f":"IFERROR(AVERAGEIFS(ТаблицаТегло[ТЕГЛО],ТаблицаТегло[ДАТА],\">=\"&H17,ТаблицаТегло[ДАТА],\"<=\"&I17),NA())","v":{"$error":"#N/A"}}]
[{"$f":"IF(('Следене на отслабване'!C39=0)*('Следене на отслабване'!C38=0),TRUE)","v":true},{"$f":"IF(A18,0,IF('Следене на отслабване'!B39=0,'Следене на отслабване'!B38+5,'Следене на отслабване'!B39))","v":"00:00:00"},{"$f":"'Следене на отслабване'!C39","v":0},{"$nulls":4},{"$error":"#N/A"},{"$error":"#N/A"},{"$f":"IFERROR(AVERAGEIFS(ТаблицаТегло[ТЕГЛО],ТаблицаТегло[ДАТА],\">=\"&H18,ТаблицаТегло[ДАТА],\"<=\"&I18),NA())","v":{"$error":"#N/A"}}]
[{"$f":"IF(('Следене на отслабване'!C40=0)*('Следене на отслабване'!C39=0),TRUE)","v":true},{"$f":"IF(A19,0,IF('Следене на отслабване'!B40=0,'Следене на отслабване'!B39+5,'Следене на отслабване'!B40))","v":"00:00:00"},{"$f":"'Следене на отслабване'!C40","v":0},{"$nulls":4},{"$error":"#N/A"},{"$error":"#N/A"},{"$f":"IFERROR(AVERAGEIFS(ТаблицаТегло[ТЕГЛО],ТаблицаТегло[ДАТА],\">=\"&H19,ТаблицаТегло[ДАТА],\"<=\"&I19),NA())","v":{"$error":"#N/A"}}]
[{"$f":"IF(('Следене на отслабване'!C41=0)*('Следене на отслабване'!C40=0),TRUE)","v":true},{"$f":"IF(A20,0,IF('Следене на отслабване'!B41=0,'Следене на отслабване'!B40+5,'Следене на отслабване'!B41))","v":"00:00:00"},{"$f":"'Следене на отслабване'!C41","v":0},{"$nulls":4},{"$error":"#N/A"},{"$error":"#N/A"},{"$f":"IFERROR(AVERAGEIFS(ТаблицаТегло[ТЕГЛО],ТаблицаТегло[ДАТА],\">=\"&H20,ТаблицаТегло[ДАТА],\"<=\"&I20),NA())","v":{"$error":"#N/A"}}]
[{"$f":"IF(('Следене на отслабване'!C42=0)*('Следене на отслабване'!C41=0),TRUE)","v":true},{"$f":"IF(A21,0,IF('Следене на отслабване'!B42=0,'Следене на отслабване'!B41+5,'Следене на отслабване'!B42))","v":"00:00:00"},{"$f":"'Следене на отслабване'!C42","v":0},{"$nulls":4},{"$error":"#N/A"},{"$error":"#N/A"},{"$f":"IFERROR(AVERAGEIFS(ТаблицаТегло[ТЕГЛО],ТаблицаТегло[ДАТА],\">=\"&H21,ТаблицаТегло[ДАТА],\"<=\"&I21),NA())","v":{"$error":"#N/A"}}]
[{"$f":"IF(('Следене на отслабване'!C43=0)*('Следене на отслабване'!C42=0),TRUE)","v":true},{"$f":"IF(A22,0,IF('Следене на отслабване'!B43=0,'Следене на отслабване'!B42+5,'Следене на отслабване'!B43))","v":"00:00:00"},{"$f":"'Следене на отслабване'!C43","v":0},{"$nulls":4},{"$error":"#N/A"},{"$error":"#N/A"},{"$f":"IFERROR(AVERAGEIFS(ТаблицаТегло[ТЕГЛО],ТаблицаТегло[ДАТА],\">=\"&H22,ТаблицаТегло[ДАТА],\"<=\"&I22),NA())","v":{"$error":"#N/A"}}]
[{"$f":"IF(('Следене на отслабване'!C44=0)*('Следене на отслабване'!C43=0),TRUE)","v":true},{"$f":"IF(A23,0,IF('Следене на отслабване'!B44=0,'Следене на отслабване'!B43+5,'Следене на отслабване'!B44))","v":"00:00:00"},{"$f":"'Следене на отслабване'!C44","v":0},{"$nulls":4},{"$error":"#N/A"},{"$error":"#N/A"},{"$f":"IFERROR(AVERAGEIFS(ТаблицаТегло[ТЕГЛО],ТаблицаТегло[ДАТА],\">=\"&H23,ТаблицаТегло[ДАТА],\"<=\"&I23),NA())","v":{"$error":"#N/A"}}]
[{"$f":"IF(('Следене на отслабване'!C45=0)*('Следене на отслабване'!C44=0),TRUE)","v":true},{"$f":"IF(A24,0,IF('Следене на отслабване'!B45=0,'Следене на отслабване'!B44+5,'Следене на отслабване'!B45))","v":"00:00:00"},{"$f":"'Следене на отслабване'!C45","v":0},{"$nulls":4},{"$error":"#N/A"},{"$error":"#N/A"},{"$f":"IFERROR(AVERAGEIFS(ТаблицаТегло[ТЕГЛО],ТаблицаТегло[ДАТА],\">=\"&H24,ТаблицаТегло[ДАТА],\"<=\"&I24),NA())","v":{"$error":"#N/A"}}]
[{"$f":"IF(('Следене на отслабване'!C46=0)*('Следене на отслабване'!C45=0),TRUE)","v":true},{"$f":"IF(A25,0,IF('Следене на отслабване'!B46=0,'Следене на отслабване'!B45+5,'Следене на отслабване'!B46))","v":"00:00:00"},{"$f":"'Следене на отслабване'!C46","v":0},{"$nulls":4},{"$error":"#N/A"},{"$error":"#N/A"},{"$f":"IFERROR(AVERAGEIFS(ТаблицаТегло[ТЕГЛО],ТаблицаТегло[ДАТА],\">=\"&H25,ТаблицаТегло[ДАТА],\"<=\"&I25),NA())","v":{"$error":"#N/A"}}]
[{"$f":"IF(('Следене на отслабване'!C47=0)*('Следене на отслабване'!C46=0),TRUE)","v":true},{"$f":"IF(A26,0,IF('Следене на отслабване'!B47=0,'Следене на отслабване'!B46+5,'Следене на отслабване'!B47))","v":"00:00:00"},{"$f":"'Следене на отслабване'!C47","v":0},{"$nulls":4},{"$error":"#N/A"},{"$error":"#N/A"},{"$f":"IFERROR(AVERAGEIFS(ТаблицаТегло[ТЕГЛО],ТаблицаТегло[ДАТА],\">=\"&H26,ТаблицаТегло[ДАТА],\"<=\"&I26),NA())","v":{"$error":"#N/A"}}]
[{"$f":"IF(('Следене на отслабване'!C48=0)*('Следене на отслабване'!C47=0),TRUE)","v":true},{"$f":"IF(A27,0,IF('Следене на отслабване'!B48=0,'Следене на отслабване'!B47+5,'Следене на отслабване'!B48))","v":"00:00:00"},{"$f":"'Следене на отслабване'!C48","v":0},{"$nulls":4},{"$error":"#N/A"},{"$error":"#N/A"},{"$f":"IFERROR(AVERAGEIFS(ТаблицаТегло[ТЕГЛО],ТаблицаТегло[ДАТА],\">=\"&H27,ТаблицаТегло[ДАТА],\"<=\"&I27),NA())","v":{"$error":"#N/A"}}]
[{"$f":"IF(('Следене на отслабване'!C49=0)*('Следене на отслабване'!C48=0),TRUE)","v":true},{"$f":"IF(A28,0,IF('Следене на отслабване'!B49=0,'Следене на отслабване'!B48+5,'Следене на отслабване'!B49))","v":"00:00:00"},{"$f":"'Следене на отслабване'!C49","v":0},{"$nulls":4},{"$error":"#N/A"},{"$error":"#N/A"},{"$f":"IFERROR(AVERAGEIFS(ТаблицаТегло[ТЕГЛО],ТаблицаТегло[ДАТА],\">=\"&H28,ТаблицаТегло[ДАТА],\"<=\"&I28),NA())","v":{"$error":"#N/A"}}]
[{"$f":"IF(('Следене на отслабване'!C50=0)*('Следене на отслабване'!C49=0),TRUE)","v":true},{"$f":"IF(A29,0,IF('Следене на отслабване'!B50=0,'Следене на отслабване'!B49+5,'Следене на отслабване'!B50))","v":"00:00:00"},{"$f":"'Следене на отслабване'!C50","v":0}]
[{"$f":"IF(('Следене на отслабване'!C51=0)*('Следене на отслабване'!C50=0),TRUE)","v":true},{"$f":"IF(A30,0,IF('Следене на отслабване'!B51=0,'Следене на отслабване'!B50+5,'Следене на отслабване'!B51))","v":"00:00:00"},{"$f":"'Следене на отслабване'!C51","v":0}]
[{"$f":"IF(('Следене на отслабване'!C52=0)*('Следене на отслабване'!C51=0),TRUE)","v":true},{"$f":"IF(A31,0,IF('Следене на отслабване'!B52=0,'Следене на отслабване'!B51+5,'Следене на отслабване'!B52))","v":"00:00:00"},{"$f":"'Следене на отслабване'!C52","v":0}]
[{"$f":"IF(('Следене на отслабване'!C53=0)*('Следене на отслабване'!C52=0),TRUE)","v":true},{"$f":"IF(A32,0,IF('Следене на отслабване'!B53=0,'Следене на отслабване'!B52+5,'Следене на отслабване'!B53))","v":"00:00:00"},{"$f":"'Следене на отслабване'!C53","v":0}]
[{"$f":"IF(('Следене на отслабване'!C54=0)*('Следене на отслабване'!C53=0),TRUE)","v":true},{"$f":"IF(A33,0,IF('Следене на отслабване'!B54=0,'Следене на отслабване'!B53+5,'Следене на отслабване'!B54))","v":"00:00:00"},{"$f":"'Следене на отслабване'!C54","v":0}]
[{"$f":"IF(('Следене на отслабване'!C55=0)*('Следене на отслабване'!C54=0),TRUE)","v":true},{"$f":"IF(A34,0,IF('Следене на отслабване'!B55=0,'Следене на отслабване'!B54+5,'Следене на отслабване'!B55))","v":"00:00:00"},{"$f":"'Следене на отслабване'!C55","v":0}]
[{"$f":"IF(('Следене на отслабване'!C56=0)*('Следене на отслабване'!C55=0),TRUE)","v":true},{"$f":"IF(A35,0,IF('Следене на отслабване'!B56=0,'Следене на отслабване'!B55+5,'Следене на отслабване'!B56))","v":"00:00:00"},{"$f":"'Следене на отслабване'!C56","v":0}]
[{"$f":"IF(('Следене на отслабване'!C57=0)*('Следене на отслабване'!C56=0),TRUE)","v":true},{"$f":"IF(A36,0,IF('Следене на отслабване'!B57=0,'Следене на отслабване'!B56+5,'Следене на отслабване'!B57))","v":"00:00:00"},{"$f":"'Следене на отслабване'!C57","v":0}]
[{"$f":"IF(('Следене на отслабване'!C58=0)*('Следене на отслабване'!C57=0),TRUE)","v":true},{"$f":"IF(A37,0,IF('Следене на отслабване'!B58=0,'Следене на отслабване'!B57+5,'Следене на отслабване'!B58))","v":"00:00:00"},{"$f":"'Следене на отслабване'!C58","v":0}]
[{"$f":"IF(('Следене на отслабване'!C59=0)*('Следене на отслабване'!C58=0),TRUE)","v":true},{"$f":"IF(A38,0,IF('Следене на отслабване'!B59=0,'Следене на отслабване'!B58+5,'Следене на отслабване'!B59))","v":"00:00:00"},{"$f":"'Следене на отслабване'!C59","v":0}]
[{"$f":"IF(('Следене на отслабване'!C60=0)*('Следене на отслабване'!C59=0),TRUE)","v":true},{"$f":"IF(A39,0,IF('Следене на отслабване'!B60=0,'Следене на отслабване'!B59+5,'Следене на отслабване'!B60))","v":"00:00:00"},{"$f":"'Следене на отслабване'!C60","v":0}]
[{"$f":"IF(('Следене на отслабване'!C61=0)*('Следене на отслабване'!C60=0),TRUE)","v":true},{"$f":"IF(A40,0,IF('Следене на отслабване'!B61=0,'Следене на отслабване'!B60+5,'Следене на отслабване'!B61))","v":"00:00:00"},{"$f":"'Следене на отслабване'!C61","v":0}]
[{"$f":"IF(('Следене на отслабване'!C62=0)*('Следене на отслабване'!C61=0),TRUE)","v":true},{"$f":"IF(A41,0,IF('Следене на отслабване'!B62=0,'Следене на отслабване'!B61+5,'Следене на отслабване'!B62))","v":"00:00:00"},{"$f":"'Следене на отслабване'!C62","v":0}]
[{"$f":"IF(('Следене на отслабване'!C63=0)*('Следене на отслабване'!C62=0),TRUE)","v":true},{"$f":"IF(A42,0,IF('Следене на отслабване'!B63=0,'Следене на отслабване'!B62+5,'Следене на отслабване'!B63))","v":"00:00:00"},{"$f":"'Следене на отслабване'!C63","v":0}]
[{"$f":"IF(('Следене на отслабване'!C64=0)*('Следене на отслабване'!C63=0),TRUE)","v":true},{"$f":"IF(A43,0,IF('Следене на отслабване'!B64=0,'Следене на отслабване'!B63+5,'Следене на отслабване'!B64))","v":"00:00:00"},{"$f":"'Следене на отслабване'!C64","v":0}]
[{"$f":"IF(('Следене на отслабване'!C65=0)*('Следене на отслабване'!C64=0),TRUE)","v":true},{"$f":"IF(A44,0,IF('Следене на отслабване'!B65=0,'Следене на отслабване'!B64+5,'Следене на отслабване'!B65))","v":"00:00:00"},{"$f":"'Следене на отслабване'!C65","v":0}]
[{"$f":"IF(('Следене на отслабване'!C66=0)*('Следене на отслабване'!C65=0),TRUE)","v":true},{"$f":"IF(A45,0,IF('Следене на отслабване'!B66=0,'Следене на отслабване'!B65+5,'Следене на отслабване'!B66))","v":"00:00:00"},{"$f":"'Следене на отслабване'!C66","v":0}]
[{"$f":"IF(('Следене на отслабване'!C67=0)*('Следене на отслабване'!C66=0),TRUE)","v":true},{"$f":"IF(A46,0,IF('Следене на отслабване'!B67=0,'Следене на отслабване'!B66+5,'Следене на отслабване'!B67))","v":"00:00:00"},{"$f":"'Следене на отслабване'!C67","v":0}]
[{"$f":"IF(('Следене на отслабване'!C68=0)*('Следене на отслабване'!C67=0),TRUE)","v":true},{"$f":"IF(A47,0,IF('Следене на отслабване'!B68=0,'Следене на отслабване'!B67+5,'Следене на отслабване'!B68))","v":"00:00:00"},{"$f":"'Следене на отслабване'!C68","v":0}]
[{"$f":"IF(('Следене на отслабване'!C69=0)*('Следене на отслабване'!C68=0),TRUE)","v":true},{"$f":"IF(A48,0,IF('Следене на отслабване'!B69=0,'Следене на отслабване'!B68+5,'Следене на отслабване'!B69))","v":"00:00:00"},{"$f":"'Следене на отслабване'!C69","v":0}]
[{"$f":"IF(('Следене на отслабване'!C70=0)*('Следене на отслабване'!C69=0),TRUE)","v":true},{"$f":"IF(A49,0,IF('Следене на отслабване'!B70=0,'Следене на отслабване'!B69+5,'Следене на отслабване'!B70))","v":"00:00:00"},{"$f":"'Следене на отслабване'!C70","v":0}]
[{"$f":"IF(('Следене на отслабване'!C71=0)*('Следене на отслабване'!C70=0),TRUE)","v":true},{"$f":"IF(A50,0,IF('Следене на отслабване'!B71=0,'Следене на отслабване'!B70+5,'Следене на отслабване'!B71))","v":"00:00:00"},{"$f":"'Следене на отслабване'!C71","v":0}]
[{"$f":"IF(('Следене на отслабване'!C72=0)*('Следене на отслабване'!C71=0),TRUE)","v":true},{"$f":"IF(A51,0,IF('Следене на отслабване'!B72=0,'Следене на отслабване'!B71+5,'Следене на отслабване'!B72))","v":"00:00:00"},{"$f":"'Следене на отслабване'!C72","v":0}]
[{"$f":"IF(('Следене на отслабване'!C73=0)*('Следене на отслабване'!C72=0),TRUE)","v":true},{"$f":"IF(A52,0,IF('Следене на отслабване'!B73=0,'Следене на отслабване'!B72+5,'Следене на отслабване'!B73))","v":"00:00:00"},{"$f":"'Следене на отслабване'!C73","v":0}]
[{"$f":"IF(('Следене на отслабване'!C74=0)*('Следене на отслабване'!C73=0),TRUE)","v":true},{"$f":"IF(A53,0,IF('Следене на отслабване'!B74=0,'Следене на отслабване'!B73+5,'Следене на отслабване'!B74))","v":"00:00:00"},{"$f":"'Следене на отслабване'!C74","v":0}]
[{"$f":"IF(('Следене на отслабване'!C75=0)*('Следене на отслабване'!C74=0),TRUE)","v":true},{"$f":"IF(A54,0,IF('Следене на отслабване'!B75=0,'Следене на отслабване'!B74+5,'Следене на отслабване'!B75))","v":"00:00:00"},{"$f":"'Следене на отслабване'!C75","v":0}]
[{"$f":"IF(('Следене на отслабване'!C76=0)*('Следене на отслабване'!C75=0),TRUE)","v":true},{"$f":"IF(A55,0,IF('Следене на отслабване'!B76=0,'Следене на отслабване'!B75+5,'Следене на отслабване'!B76))","v":"00:00:00"},{"$f":"'Следене на отслабване'!C76","v":0}]
[{"$f":"IF(('Следене на отслабване'!C77=0)*('Следене на отслабване'!C76=0),TRUE)","v":true},{"$f":"IF(A56,0,IF('Следене на отслабване'!B77=0,'Следене на отслабване'!B76+5,'Следене на отслабване'!B77))","v":"00:00:00"},{"$f":"'Следене на отслабване'!C77","v":0}]
[{"$f":"IF(('Следене на отслабване'!C78=0)*('Следене на отслабване'!C77=0),TRUE)","v":true},{"$f":"IF(A57,0,IF('Следене на отслабване'!B78=0,'Следене на отслабване'!B77+5,'Следене на отслабване'!B78))","v":"00:00:00"},{"$f":"'Следене на отслабване'!C78","v":0}]
[{"$f":"IF(('Следене на отслабване'!C79=0)*('Следене на отслабване'!C78=0),TRUE)","v":true},{"$f":"IF(A58,0,IF('Следене на отслабване'!B79=0,'Следене на отслабване'!B78+5,'Следене на отслабване'!B79))","v":"00:00:00"},{"$f":"'Следене на отслабване'!C79","v":0}]
[{"$f":"IF(('Следене на отслабване'!C80=0)*('Следене на отслабване'!C79=0),TRUE)","v":true},{"$f":"IF(A59,0,IF('Следене на отслабване'!B80=0,'Следене на отслабване'!B79+5,'Следене на отслабване'!B80))","v":"00:00:00"},{"$f":"'Следене на отслабване'!C80","v":0}]
[{"$f":"IF(('Следене на отслабване'!C81=0)*('Следене на отслабване'!C80=0),TRUE)","v":true},{"$f":"IF(A60,0,IF('Следене на отслабване'!B81=0,'Следене на отслабване'!B80+5,'Следене на отслабване'!B81))","v":"00:00:00"},{"$f":"'Следене на отслабване'!C81","v":0}]
[{"$f":"IF(('Следене на отслабване'!C82=0)*('Следене на отслабване'!C81=0),TRUE)","v":true},{"$f":"IF(A61,0,IF('Следене на отслабване'!B82=0,'Следене на отслабване'!B81+5,'Следене на отслабване'!B82))","v":"00:00:00"},{"$f":"'Следене на отслабване'!C82","v":0}]
[{"$f":"IF(('Следене на отслабване'!C83=0)*('Следене на отслабване'!C82=0),TRUE)","v":true},{"$f":"IF(A62,0,IF('Следене на отслабване'!B83=0,'Следене на отслабване'!B82+5,'Следене на отслабване'!B83))","v":"00:00:00"},{"$f":"'Следене на отслабване'!C83","v":0}]
[{"$f":"IF(('Следене на отслабване'!C84=0)*('Следене на отслабване'!C83=0),TRUE)","v":true},{"$f":"IF(A63,0,IF('Следене на отслабване'!B84=0,'Следене на отслабване'!B83+5,'Следене на отслабване'!B84))","v":"00:00:00"},{"$f":"'Следене на отслабване'!C84","v":0}]
[{"$f":"IF(('Следене на отслабване'!C85=0)*('Следене на отслабване'!C84=0),TRUE)","v":true},{"$f":"IF(A64,0,IF('Следене на отслабване'!B85=0,'Следене на отслабване'!B84+5,'Следене на отслабване'!B85))","v":"00:00:00"},{"$f":"'Следене на отслабване'!C85","v":0}]
[{"$f":"IF(('Следене на отслабване'!C86=0)*('Следене на отслабване'!C85=0),TRUE)","v":true},{"$f":"IF(A65,0,IF('Следене на отслабване'!B86=0,'Следене на отслабване'!B85+5,'Следене на отслабване'!B86))","v":"00:00:00"},{"$f":"'Следене на отслабване'!C86","v":0}]
[{"$f":"IF(('Следене на отслабване'!C87=0)*('Следене на отслабване'!C86=0),TRUE)","v":true},{"$f":"IF(A66,0,IF('Следене на отслабване'!B87=0,'Следене на отслабване'!B86+5,'Следене на отслабване'!B87))","v":"00:00:00"},{"$f":"'Следене на отслабване'!C87","v":0}]
[{"$f":"IF(('Следене на отслабване'!C88=0)*('Следене на отслабване'!C87=0),TRUE)","v":true},{"$f":"IF(A67,0,IF('Следене на отслабване'!B88=0,'Следене на отслабване'!B87+5,'Следене на отслабване'!B88))","v":"00:00:00"},{"$f":"'Следене на отслабване'!C88","v":0}]
[{"$f":"IF(('Следене на отслабване'!C89=0)*('Следене на отслабване'!C88=0),TRUE)","v":true},{"$f":"IF(A68,0,IF('Следене на отслабване'!B89=0,'Следене на отслабване'!B88+5,'Следене на отслабване'!B89))","v":"00:00:00"},{"$f":"'Следене на отслабване'!C89","v":0}]
[{"$f":"IF(('Следене на отслабване'!C90=0)*('Следене на отслабване'!C89=0),TRUE)","v":true},{"$f":"IF(A69,0,IF('Следене на отслабване'!B90=0,'Следене на отслабване'!B89+5,'Следене на отслабване'!B90))","v":"00:00:00"},{"$f":"'Следене на отслабване'!C90","v":0}]
[{"$f":"IF(('Следене на отслабване'!C91=0)*('Следене на отслабване'!C90=0),TRUE)","v":true},{"$f":"IF(A70,0,IF('Следене на отслабване'!B91=0,'Следене на отслабване'!B90+5,'Следене на отслабване'!B91))","v":"00:00:00"},{"$f":"'Следене на отслабване'!C91","v":0}]
[{"$f":"IF(('Следене на отслабване'!C92=0)*('Следене на отслабване'!C91=0),TRUE)","v":true},{"$f":"IF(A71,0,IF('Следене на отслабване'!B92=0,'Следене на отслабване'!B91+5,'Следене на отслабване'!B92))","v":"00:00:00"},{"$f":"'Следене на отслабване'!C92","v":0}]
[{"$f":"IF(('Следене на отслабване'!C93=0)*('Следене на отслабване'!C92=0),TRUE)","v":true},{"$f":"IF(A72,0,IF('Следене на отслабване'!B93=0,'Следене на отслабване'!B92+5,'Следене на отслабване'!B93))","v":"00:00:00"},{"$f":"'Следене на отслабване'!C93","v":0}]
[{"$f":"IF(('Следене на отслабване'!C94=0)*('Следене на отслабване'!C93=0),TRUE)","v":true},{"$f":"IF(A73,0,IF('Следене на отслабване'!B94=0,'Следене на отслабване'!B93+5,'Следене на отслабване'!B94))","v":"00:00:00"},{"$f":"'Следене на отслабване'!C94","v":0}]
[{"$f":"IF(('Следене на отслабване'!C95=0)*('Следене на отслабване'!C94=0),TRUE)","v":true},{"$f":"IF(A74,0,IF('Следене на отслабване'!B95=0,'Следене на отслабване'!B94+5,'Следене на отслабване'!B95))","v":"00:00:00"},{"$f":"'Следене на отслабване'!C95","v":0}]
[{"$f":"IF(('Следене на отслабване'!C96=0)*('Следене на отслабване'!C95=0),TRUE)","v":true},{"$f":"IF(A75,0,IF('Следене на отслабване'!B96=0,'Следене на отслабване'!B95+5,'Следене на отслабване'!B96))","v":"00:00:00"},{"$f":"'Следене на отслабване'!C96","v":0}]
[{"$f":"IF(('Следене на отслабване'!C97=0)*('Следене на отслабване'!C96=0),TRUE)","v":true},{"$f":"IF(A76,0,IF('Следене на отслабване'!B97=0,'Следене на отслабване'!B96+5,'Следене на отслабване'!B97))","v":"00:00:00"},{"$f":"'Следене на отслабване'!C97","v":0}]
[{"$f":"IF(('Следене на отслабване'!C98=0)*('Следене на отслабване'!C97=0),TRUE)","v":true},{"$f":"IF(A77,0,IF('Следене на отслабване'!B98=0,'Следене на отслабване'!B97+5,'Следене на отслабване'!B98))","v":"00:00:00"},{"$f":"'Следене на отслабване'!C98","v":0}]
[{"$f":"IF(('Следене на отслабване'!C99=0)*('Следене на отслабване'!C98=0),TRUE)","v":true},{"$f":"IF(A78,0,IF('Следене на отслабване'!B99=0,'Следене на отслабване'!B98+5,'Следене на отслабване'!B99))","v":"00:00:00"},{"$f":"'Следене на отслабване'!C99","v":0}]
[{"$f":"IF(('Следене на отслабване'!C100=0)*('Следене на отслабване'!C99=0),TRUE)","v":true},{"$f":"IF(A79,0,IF('Следене на отслабване'!B100=0,'Следене на отслабване'!B99+5,'Следене на отслабване'!B100))","v":"00:00:00"},{"$f":"'Следене на отслабване'!C100","v":0}]
[{"$f":"IF(('Следене на отслабване'!C101=0)*('Следене на отслабване'!C100=0),TRUE)","v":true},{"$f":"IF(A80,0,IF('Следене на отслабване'!B101=0,'Следене на отслабване'!B100+5,'Следене на отслабване'!B101))","v":"00:00:00"},{"$f":"'Следене на отслабване'!C101","v":0}]
[{"$f":"IF(('Следене на отслабване'!C102=0)*('Следене на отслабване'!C101=0),TRUE)","v":true},{"$f":"IF(A81,0,IF('Следене на отслабване'!B102=0,'Следене на отслабване'!B101+5,'Следене на отслабване'!B102))","v":"00:00:00"},{"$f":"'Следене на отслабване'!C102","v":0}]
[{"$f":"IF(('Следене на отслабване'!C103=0)*('Следене на отслабване'!C102=0),TRUE)","v":true},{"$f":"IF(A82,0,IF('Следене на отслабване'!B103=0,'Следене на отслабване'!B102+5,'Следене на отслабване'!B103))","v":"00:00:00"},{"$f":"'Следене на отслабване'!C103","v":0}]
[{"$f":"IF(('Следене на отслабване'!C104=0)*('Следене на отслабване'!C103=0),TRUE)","v":true},{"$f":"IF(A83,0,IF('Следене на отслабване'!B104=0,'Следене на отслабване'!B103+5,'Следене на отслабване'!B104))","v":"00:00:00"},{"$f":"'Следене на отслабване'!C104","v":0}]
[{"$f":"IF(('Следене на отслабване'!C105=0)*('Следене на отслабване'!C104=0),TRUE)","v":true},{"$f":"IF(A84,0,IF('Следене на отслабване'!B105=0,'Следене на отслабване'!B104+5,'Следене на отслабване'!B105))","v":"00:00:00"},{"$f":"'Следене на отслабване'!C105","v":0}]
[{"$f":"IF(('Следене на отслабване'!C106=0)*('Следене на отслабване'!C105=0),TRUE)","v":true},{"$f":"IF(A85,0,IF('Следене на отслабване'!B106=0,'Следене на отслабване'!B105+5,'Следене на отслабване'!B106))","v":"00:00:00"},{"$f":"'Следене на отслабване'!C106","v":0}]
[{"$f":"IF(('Следене на отслабване'!C107=0)*('Следене на отслабване'!C106=0),TRUE)","v":true},{"$f":"IF(A86,0,IF('Следене на отслабване'!B107=0,'Следене на отслабване'!B106+5,'Следене на отслабване'!B107))","v":"00:00:00"},{"$f":"'Следене на отслабване'!C107","v":0}]
[{"$f":"IF(('Следене на отслабване'!C108=0)*('Следене на отслабване'!C107=0),TRUE)","v":true},{"$f":"IF(A87,0,IF('Следене на отслабване'!B108=0,'Следене на отслабване'!B107+5,'Следене на отслабване'!B108))","v":"00:00:00"},{"$f":"'Следене на отслабване'!C108","v":0}]
[{"$f":"IF(('Следене на отслабване'!C109=0)*('Следене на отслабване'!C108=0),TRUE)","v":true},{"$f":"IF(A88,0,IF('Следене на отслабване'!B109=0,'Следене на отслабване'!B108+5,'Следене на отслабване'!B109))","v":"00:00:00"},{"$f":"'Следене на отслабване'!C109","v":0}]
[{"$f":"IF(('Следене на отслабване'!C110=0)*('Следене на отслабване'!C109=0),TRUE)","v":true},{"$f":"IF(A89,0,IF('Следене на отслабване'!B110=0,'Следене на отслабване'!B109+5,'Следене на отслабване'!B110))","v":"00:00:00"},{"$f":"'Следене на отслабване'!C110","v":0}]
[{"$f":"IF(('Следене на отслабване'!C111=0)*('Следене на отслабване'!C110=0),TRUE)","v":true},{"$f":"IF(A90,0,IF('Следене на отслабване'!B111=0,'Следене на отслабване'!B110+5,'Следене на отслабване'!B111))","v":"00:00:00"},{"$f":"'Следене на отслабване'!C111","v":0}]
[{"$f":"IF(('Следене на отслабване'!C112=0)*('Следене на отслабване'!C111=0),TRUE)","v":true},{"$f":"IF(A91,0,IF('Следене на отслабване'!B112=0,'Следене на отслабване'!B111+5,'Следене на отслабване'!B112))","v":"00:00:00"},{"$f":"'Следене на отслабване'!C112","v":0}]
[{"$f":"IF(('Следене на отслабване'!C113=0)*('Следене на отслабване'!C112=0),TRUE)","v":true},{"$f":"IF(A92,0,IF('Следене на отслабване'!B113=0,'Следене на отслабване'!B112+5,'Следене на отслабване'!B113))","v":"00:00:00"},{"$f":"'Следене на отслабване'!C113","v":0}]
[{"$f":"IF(('Следене на отслабване'!C114=0)*('Следене на отслабване'!C113=0),TRUE)","v":true},{"$f":"IF(A93,0,IF('Следене на отслабване'!B114=0,'Следене на отслабване'!B113+5,'Следене на отслабване'!B114))","v":"00:00:00"},{"$f":"'Следене на отслабване'!C114","v":0}]
[{"$f":"IF(('Следене на отслабване'!C115=0)*('Следене на отслабване'!C114=0),TRUE)","v":true},{"$f":"IF(A94,0,IF('Следене на отслабване'!B115=0,'Следене на отслабване'!B114+5,'Следене на отслабване'!B115))","v":"00:00:00"},{"$f":"'Следене на отслабване'!C115","v":0}]
[{"$f":"IF(('Следене на отслабване'!C116=0)*('Следене на отслабване'!C115=0),TRUE)","v":true},{"$f":"IF(A95,0,IF('Следене на отслабване'!B116=0,'Следене на отслабване'!B115+5,'Следене на отслабване'!B116))","v":"00:00:00"},{"$f":"'Следене на отслабване'!C116","v":0}]
[{"$f":"IF(('Следене на отслабване'!C117=0)*('Следене на отслабване'!C116=0),TRUE)","v":true},{"$f":"IF(A96,0,IF('Следене на отслабване'!B117=0,'Следене на отслабване'!B116+5,'Следене на отслабване'!B117))","v":"00:00:00"},{"$f":"'Следене на отслабване'!C117","v":0}]
[{"$f":"IF(('Следене на отслабване'!C118=0)*('Следене на отслабване'!C117=0),TRUE)","v":true},{"$f":"IF(A97,0,IF('Следене на отслабване'!B118=0,'Следене на отслабване'!B117+5,'Следене на отслабване'!B118))","v":"00:00:00"},{"$f":"'Следене на отслабване'!C118","v":0}]
[{"$f":"IF(('Следене на отслабване'!C119=0)*('Следене на отслабване'!C118=0),TRUE)","v":true},{"$f":"IF(A98,0,IF('Следене на отслабване'!B119=0,'Следене на отслабване'!B118+5,'Следене на отслабване'!B119))","v":"00:00:00"},{"$f":"'Следене на отслабване'!C119","v":0}]
[{"$f":"IF(('Следене на отслабване'!C120=0)*('Следене на отслабване'!C119=0),TRUE)","v":true},{"$f":"IF(A99,0,IF('Следене на отслабване'!B120=0,'Следене на отслабване'!B119+5,'Следене на отслабване'!B120))","v":"00:00:00"},{"$f":"'Следене на отслабване'!C120","v":0}]
[{"$f":"IF(('Следене на отслабване'!C121=0)*('Следене на отслабване'!C120=0),TRUE)","v":true},{"$f":"IF(A100,0,IF('Следене на отслабване'!B121=0,'Следене на отслабване'!B120+5,'Следене на отслабване'!B121))","v":"00:00:00"},{"$f":"'Следене на отслабване'!C121","v":0}]
[{"$f":"IF(('Следене на отслабване'!C122=0)*('Следене на отслабване'!C121=0),TRUE)","v":true},{"$f":"IF(A101,0,IF('Следене на отслабване'!B122=0,'Следене на отслабване'!B121+5,'Следене на отслабване'!B122))","v":"00:00:00"},{"$f":"'Следене на отслабване'!C122","v":0}]
[{"$f":"IF(('Следене на отслабване'!C123=0)*('Следене на отслабване'!C122=0),TRUE)","v":true},{"$f":"IF(A102,0,IF('Следене на отслабване'!B123=0,'Следене на отслабване'!B122+5,'Следене на отслабване'!B123))","v":"00:00:00"},{"$f":"'Следене на отслабване'!C123","v":0}]
[{"$f":"IF(('Следене на отслабване'!C124=0)*('Следене на отслабване'!C123=0),TRUE)","v":true},{"$f":"IF(A103,0,IF('Следене на отслабване'!B124=0,'Следене на отслабване'!B123+5,'Следене на отслабване'!B124))","v":"00:00:00"},{"$f":"'Следене на отслабване'!C124","v":0}]
[{"$f":"IF(('Следене на отслабване'!C125=0)*('Следене на отслабване'!C124=0),TRUE)","v":true},{"$f":"IF(A104,0,IF('Следене на отслабване'!B125=0,'Следене на отслабване'!B124+5,'Следене на отслабване'!B125))","v":"00:00:00"},{"$f":"'Следене на отслабване'!C125","v":0}]
[{"$f":"IF(('Следене на отслабване'!C126=0)*('Следене на отслабване'!C125=0),TRUE)","v":true},{"$f":"IF(A105,0,IF('Следене на отслабване'!B126=0,'Следене на отслабване'!B125+5,'Следене на отслабване'!B126))","v":"00:00:00"},{"$f":"'Следене на отслабване'!C126","v":0}]
[{"$f":"IF(('Следене на отслабване'!C127=0)*('Следене на отслабване'!C126=0),TRUE)","v":true},{"$f":"IF(A106,0,IF('Следене на отслабване'!B127=0,'Следене на отслабване'!B126+5,'Следене на отслабване'!B127))","v":"00:00:00"},{"$f":"'Следене на отслабване'!C127","v":0}]
[{"$f":"IF(('Следене на отслабване'!C128=0)*('Следене на отслабване'!C127=0),TRUE)","v":true},{"$f":"IF(A107,0,IF('Следене на отслабване'!B128=0,'Следене на отслабване'!B127+5,'Следене на отслабване'!B128))","v":"00:00:00"},{"$f":"'Следене на отслабване'!C128","v":0}]
[{"$f":"IF(('Следене на отслабване'!C129=0)*('Следене на отслабване'!C128=0),TRUE)","v":true},{"$f":"IF(A108,0,IF('Следене на отслабване'!B129=0,'Следене на отслабване'!B128+5,'Следене на отслабване'!B129))","v":"00:00:00"},{"$f":"'Следене на отслабване'!C129","v":0}]